fUST/lending_fUST_20250612
["ID","MTS","AMOUNT","RATE_DAILY","PERIOD"]
[365477905,1749697843289,-460.0,0.00022927,2]
[365477907,1749697843299,-184.571,0.00022927,2]
[365477910,1749697843309,-407.0,0.00022958,2]
[365477913,1749697843319,-4549.14311968,0.00022965,2]
[365477916,1749697843327,-3272.11963198,0.00022965,2]
[365477919,1749697843337,-152.704178,0.00022965,7]
[365477922,1749697843347,-151.0,0.00022965,7]
[365477925,1749697843357,-185.214724,0.00022965,7]
[365477928,1749697843366,-460.0,0.00022966,4]
[365477931,1749697843376,-151.631119,0.00022972,7]
[365477934,1749697843387,-407.0,0.00022972,2]
[365477937,1749697843397,-407.0,0.00022978,2]
[365477940,1749697843406,-151.0,0.0002298,7]
[365477942,1749697843416,-151.0,0.0002298,7]
[365477944,1749697843425,-151.0,0.0002298,7]
[365477946,1749697843435,-151.0,0.0002298,7]
[365477948,1749697843445,-460.0,0.00022997,4]
[365477950,1749697843454,-151.0,0.00022997,7]
[365477952,1749697843464,-151.0,0.00022997,7]
[365477954,1749697843474,-2083.37,0.00022997,4]
[365477956,1749697843483,-188.16953341,0.00022997,4]
[365477958,1749697843492,-460.0,0.00022997,4]
[365477960,1749697843501,-1210.17,0.00022997,4]
[365477962,1749697843511,-482.08,0.00022997,4]
[365477964,1749697843521,-460.0,0.00022998,4]
[365477966,1749697843532,-498.80562709,0.00022998,4]
[365477968,1749697843541,-377.081002,0.00022999,7]
[365477970,1749697843551,-151.0,0.00022999,7]
[365477971,1749697843561,-151.0,0.00022999,7]
[365477973,1749697843570,-151.0,0.00022999,7]
[365477975,1749697843580,-500.0,0.00022999,2]
[365477977,1749697843589,-500.0,0.00022999,2]
[365477979,1749697843599,-500.0,0.00022999,2]
[365477981,1749697843608,-500.0,0.00022999,2]
[365477983,1749697843617,-179.66015798,0.00022999,2]
[365477985,1749697843627,-500.0,0.00022999,2]
[365477987,1749697843638,-500.0,0.00022999,2]
[365477989,1749697843648,-500.0,0.00022999,2]
[365477991,1749697843657,-212.2306263,0.00022999,2]
[365477993,1749697843667,-151.0,0.00022999,7]
[365477994,1749697843676,-151.0,0.00022999,7]
[365477996,1749697843686,-151.0,0.00022999,7]
[365477998,1749697843695,-254.297836,0.00022999,7]
[365478000,1749697843705,-242.690689,0.00022999,7]
[365478002,1749697843714,-242.690689,0.00022999,7]
[365478004,1749697843724,-151.0,0.00022999,7]
[365478006,1749697843733,-151.0,0.00022999,7]
[365478008,1749697843743,-354.006173,0.00022999,7]
[365478010,1749697843753,-354.006173,0.00022999,7]
[365478012,1749697843763,-151.0,0.00022999,7]
[365478014,1749697843772,-151.0,0.00022999,7]
[365478015,1749697843781,-11678.6715088,0.00023,2]
[365479601,1749697962828,-230.0,0.00019933,2]
[365479604,1749698031300,-320.0,0.0001991,2]
[365479607,1749698076240,163.191088,0.00013699,2]
[365479609,1749698094677,-249.3109505,0.00018747,2]
[365479610,1749698094699,-4861.6890495,0.00019734,2]
[365479611,1749698164911,-38.22338131,0.00019734,2]
[365479612,1749698164935,-191.77661869,0.00019933,2]
[365479614,1749698230753,-4865.0,0.00019734,2]
[365479617,1749698297135,-135.0,0.00019734,2]
[365479618,1749698297159,-25.0,0.00019914,2]
[365479622,1749698491898,-572.22055633,0.00019718,2]
[365479623,1749698491921,-262.77944367,0.00019917,2]
[365479627,1749698579389,300.32984773,0.0001805,6]
[365479676,1749698825549,500.0,0.0002,26]
[365479677,1749698826721,500.0,0.0002,26]
[365479679,1749698828142,500.0,0.0002,26]
[365479680,1749698828901,500.0,0.0002,26]
[365479681,1749698829835,500.0,0.0002,26]
[365479682,1749698830788,500.0,0.0002,26]
[365479683,1749698831971,500.0,0.0002,26]
[365479684,1749698832850,500.0,0.0002,26]
[365479689,1749698873738,-166.0273955,0.00018,2]
[365479691,1749698877888,-4830.0,0.00018,2]
[365479692,1749698882195,4830.0,0.00018,2]
[365479693,1749698885735,-166.0273955,0.00018,2]
[365479696,1749698900687,-333.9726045,0.00018,2]
[365479701,1749698915599,-166.0273955,0.00018,2]
[365479711,1749698942388,300.0,0.00017999,2]
[365479712,1749699010333,300.0,0.00017999,2]
[365479760,1749699032156,-882.87703115,0.00018,2]
[365479767,1749699032213,-348.15064353,0.00018,2]
[365479769,1749699032225,-3631.7903661,0.00018,2]
[365480282,1749699043349,-12928.98891686,0.00018,2]
[365480514,1749699046333,-292.57375087,0.00018,2]
[365480540,1749699046603,-0.18650056,0.00018,2]
[365483413,1749699081737,163.191088,0.00013699,2]
[365483414,1749699131060,-2446.0,0.00018,2]
[365483416,1749699198303,-2529.0,0.00018,2]
[365483418,1749699235568,428.05481808,0.00017834,2]
[365483420,1749699249692,245043.56641027,0.00024932,120]
[365483421,1749699268217,-14.66013607,0.00018,2]
[365483422,1749699268238,-255.0,0.0001811,2]
[365483423,1749699268262,-255.0,0.00018115,2]
[365483424,1749699268288,-255.0,0.0001812,2]
[365483425,1749699268310,-168.33986393,0.00018125,2]
[365483427,1749699314057,617188.3687594,0.0002465,120]
[365483429,1749699467501,-65.4547116,0.00018125,2]
[365483430,1749699467531,-441.26,0.00018389,2]
[365483431,1749699467558,-882.52,0.00019265,2]
[365483432,1749699467584,-1327.9654855,0.00019584,2]
[365483433,1749699467611,-1677.9061442,0.00019602,2]
[365483434,1749699467639,-245.78675118,0.000198,2]
[365483435,1749699467665,-300.1,0.00019999,6]
[365483436,1749699467693,-3482.2726935,0.00020087,2]
[365483437,1749699467720,-674.73421402,0.00020141,2]
[365483467,1749699686666,528627.0,0.00024657,120]
[365483473,1749699742076,415.83,0.00017882,2]
[365483476,1749699821250,419.47,0.00017882,2]
[365483489,1749699904493,432.02,0.0001788,2]
[365483506,1749699986931,426.52,0.00017854,2]
[365483522,1749700065433,163.191088,0.00013699,2]
[365483523,1749700067135,421.09,0.00017876,2]
[365483525,1749700115383,-5000.0,0.00018362,2]
[365483526,1749700115404,-160.0,0.00018682,2]
[365483527,1749700115632,-842.18,0.00018727,2]
[365483528,1749700115657,-1263.27,0.00019579,2]
[365483529,1749700115681,-300.0,0.00019705,2]
[365483530,1749700115702,-17054.55,0.00019706,2]
[365483531,1749700117664,3009.0,0.00018,2]
[365483534,1749700149013,388.93,0.00017895,2]
[365483535,1749700199624,188.39403532,0.0001779,2]
[365483537,1749700231587,383.98,0.00017896,2]
[365483565,1749700232410,-4603.53536775,0.00018539,2]
[365483581,1749700232563,-396.46463225,0.00018539,2]
[365483583,1749700232574,-300.0,0.00018725,2]
[365483585,1749700232585,-300.0,0.00018725,2]
[365483587,1749700232594,-300.0,0.00018725,2]
[365483589,1749700232604,-300.0,0.00018725,2]
[365483591,1749700232614,-17846.8491607,0.00018726,2]
[365483593,1749700232623,-767.97,0.00018749,2]
[365483598,1749700232644,-1151.95,0.00019601,2]
[365483602,1749700232656,-7845.45,0.00019706,2]
[365483605,1749700232666,-178.36083827,0.00019815,2]
[365483608,1749700232676,-16450.7760686,0.00019915,2]
[365483611,1749700232685,-1152.8463866,0.00019915,2]
[365483613,1749700232696,-5182.6272221,0.00019926,2]
[365483616,1749700232708,-948.210535,0.00019993,2]
[365483618,1749700232719,-512.95990866,0.0002,2]
[365483620,1749700232729,-512.95990851,0.00020072,2]
[365483622,1749700232739,-512.95990851,0.00020245,2]
[365483623,1749700232749,-301.35895848,0.00020295,2]
[365483624,1749700232759,-316.8544899,0.00020297,2]
[365483625,1749700232770,-307.0,0.00020416,2]
[365483626,1749700232782,-304.0,0.00020416,2]
[365483627,1749700232793,-420.0,0.00020416,2]
[365483629,1749700232802,-310.0,0.00020416,2]
[365483630,1749700232812,-512.95990851,0.00020417,3]
[365483631,1749700232823,-212.8394051,0.00020418,2]
[365483633,1749700232832,-512.95990851,0.0002059,3]
[365483635,1749700232843,-186.98321287,0.0002069,2]
[365483637,1749700232852,-512.95990851,0.00020762,3]
[365483639,1749700232862,-512.95990851,0.00020934,4]
[365483641,1749700232871,-300.0,0.00021093,2]
[365483643,1749700232881,-460.70296621,0.00021095,4]
[365483645,1749700232891,-451.41107963,0.00021095,4]
[365483647,1749700232900,-460.0,0.00021095,4]
[365483649,1749700232910,-460.0,0.00021095,2]
[365483651,1749700232920,-460.0,0.00021095,4]
[365483653,1749700232930,-460.0,0.00021095,4]
[365483655,1749700232940,-512.95990851,0.00021107,4]
[365483675,1749700233118,-153.394512,0.00021255,2]
[365483677,1749700233129,-151.0,0.00021255,2]
[365483679,1749700233140,-206.814931,0.00021255,2]
[365483681,1749700233150,-206.814931,0.00021255,2]
[365483683,1749700233161,-512.95990851,0.00021279,5]
[365483685,1749700233170,-460.0,0.00021287,4]
[365483687,1749700233180,-460.0,0.00021287,4]
[365483689,1749700233190,-507.94022779,0.00021287,4]
[365483691,1749700233205,-519.94025948,0.00021368,4]
[365483692,1749700233216,-448.81370365,0.00021368,4]
[365483694,1749700233227,-485.88924722,0.00021368,4]
[365483696,1749700233238,-460.0,0.00021368,4]
[365483698,1749700233248,-585.36766435,0.00021368,4]
[365483700,1749700233258,-463.63131994,0.00021368,4]
[365483702,1749700233267,-581.79138842,0.00021368,4]
[365483704,1749700233277,-460.0,0.00021368,4]
[365483705,1749700233287,-460.0,0.00021368,4]
[365483706,1749700233297,-460.0,0.00021368,4]
[365483708,1749700233307,-218.42162,0.00021369,2]
[365483710,1749700233317,-218.42162,0.00021369,2]
[365483712,1749700233327,-312.319865,0.00021369,2]
[365483714,1749700233337,-266.60782,0.00021369,2]
[365483716,1749700233347,-460.0,0.00021369,4]
[365483718,1749700233357,-460.0,0.00021369,2]
[365483720,1749700233367,-165.27976457,0.00021369,4]
[365483722,1749700233378,-460.0,0.00021369,4]
[365483724,1749700233387,-318.605555,0.00021369,2]
[365483726,1749700233397,-318.605555,0.00021369,2]
[365483728,1749700233407,-151.0,0.00021369,2]
[365483730,1749700233417,-206.814931,0.00021369,2]
[365483732,1749700233427,-206.814931,0.00021369,2]
[365483734,1749700233437,-512.95990851,0.00021452,5]
[365483736,1749700233447,-424.26423502,0.00021523,2]
[365483738,1749700233457,-160.0,0.00021523,2]
[365483740,1749700233468,-229.7508257,0.00021523,2]
[365483741,1749700233478,-160.0,0.00021523,2]
[365483743,1749700233488,-160.0,0.0002155,2]
[365483745,1749700233498,-844.79171733,0.0002155,2]
[365483747,1749700233507,-151.0,0.0002155,2]
[365483749,1749700233518,-460.0,0.00021561,4]
[365483751,1749700233528,-184.571,0.00021561,2]
[365483753,1749700233538,-512.95990851,0.00021624,5]
[365483755,1749700233549,-640.08,0.0002163,10]
[365483757,1749700233559,-251.13781167,0.0002164,2]
[365483759,1749700233568,-157.29646072,0.0002164,2]
[365483761,1749700233578,-16000.0,0.0002164,2]
[365483763,1749700233590,-6966.62620505,0.0002164,2]
[365483764,1749700233599,-221.734775,0.0002164,2]
[365483765,1749700233610,-151.0,0.0002164,2]
[365483766,1749700233620,-151.0,0.0002164,2]
[365483767,1749700233629,-206.814931,0.0002164,2]
[365483768,1749700233640,-206.814931,0.0002164,2]
[365483769,1749700233650,-206.814931,0.0002164,2]
[365483770,1749700233661,-206.814931,0.0002164,2]
[365483771,1749700233671,-460.0,0.00021641,4]
[365483772,1749700233682,-460.0,0.00021641,4]
[365483773,1749700233692,-1996.56,0.00021641,4]
[365483774,1749700233704,-460.0,0.00021641,4]
[365483775,1749700233717,-460.0,0.00021641,4]
[365483776,1749700233727,-497.51421111,0.00021641,4]
[365483777,1749700233737,-603.02037436,0.00021641,4]
[365483778,1749700233749,-448.81734468,0.00021641,4]
[365483779,1749700233758,-576.21,0.00021641,4]
[365483780,1749700233768,-183.59298486,0.00021641,4]
[365483781,1749700233779,-1159.75,0.00021641,4]
[365483782,1749700233788,-460.0,0.00021641,4]
[365483783,1749700233798,-444.49610686,0.00021642,4]
[365483784,1749700233807,-489.50914022,0.00021642,4]
[365483785,1749700233817,-460.0,0.00021642,4]
[365483786,1749700233830,-489.05602966,0.00021642,4]
[365483787,1749700233840,-478.07853539,0.00021642,4]
[365483788,1749700233850,-151.0,0.00021642,2]
[365483789,1749700233860,-359.47588267,0.00021642,4]
[365483790,1749700233871,-482.59461386,0.00021642,4]
[365483791,1749700233881,-460.0,0.00021642,4]
[365483792,1749700233891,-313.45712271,0.00021642,4]
[365483793,1749700233901,-151.0,0.00021642,2]
[365483794,1749700233911,-460.0,0.00021642,4]
[365483795,1749700233921,-460.0,0.00021642,4]
[365483796,1749700233931,-460.0,0.00021642,4]
[365483797,1749700233941,-513.53384311,0.00021642,4]
[365483798,1749700233951,-400.71,0.00021642,4]
[365483799,1749700233961,-206.814931,0.00021642,2]
[365483800,1749700233972,-206.814931,0.00021642,2]
[365483801,1749700233981,-460.0,0.00021643,4]
[365483802,1749700233991,-460.0,0.00021643,2]
[365483803,1749700234001,-460.0,0.00021643,4]
[365483804,1749700234011,-151.0,0.00021643,2]
[365483805,1749700234022,-206.814931,0.00021643,2]
[365483806,1749700234033,-151.0,0.00021652,2]
[365483807,1749700234042,-160.73057,0.00021652,2]
[365483808,1749700234052,-160.73057,0.00021652,2]
[365483809,1749700234062,-151.0,0.00021652,2]
[365483810,1749700234071,-151.0,0.00021652,2]
[365483811,1749700234081,-151.0,0.00021652,2]
[365483812,1749700234091,-151.0,0.00021652,2]
[365483813,1749700234101,-153.583511,0.00021652,2]
[365483814,1749700234111,-151.0,0.00021652,2]
[365483815,1749700234121,-151.0,0.00021652,2]
[365483816,1749700234130,-358.226952,0.00021652,2]
[365483817,1749700234139,-358.226952,0.00021652,2]
[365483818,1749700234149,-460.0,0.00021652,4]
[365483819,1749700234159,-494.47159071,0.00021652,4]
[365483820,1749700234168,-460.0,0.00021652,4]
[365483821,1749700234178,-460.0,0.00021652,4]
[365483822,1749700234187,-460.0,0.00021652,4]
[365483823,1749700234197,-460.0,0.00021652,4]
[365483824,1749700234207,-151.0,0.00021653,2]
[365483825,1749700234218,-151.0,0.00021653,2]
[365483826,1749700234227,-151.0,0.00021653,2]
[365483827,1749700234238,-152.774938,0.00021653,2]
[365483828,1749700234248,-151.0,0.00021653,2]
[365483829,1749700234258,-151.0,0.00021653,2]
[365483830,1749700234269,-218.42162,0.00021653,2]
[365483831,1749700234280,-218.42162,0.00021653,2]
[365483832,1749700234291,-312.319865,0.00021653,2]
[365483833,1749700234301,-151.0,0.00021653,2]
[365483834,1749700234311,-151.0,0.00021653,2]
[365483835,1749700234320,-160.73057,0.00021653,2]
[365483836,1749700234330,-160.73057,0.00021653,2]
[365483837,1749700234339,-151.0,0.00021653,2]
[365483838,1749700234349,-318.605555,0.00021653,2]
[365483839,1749700234358,-318.605555,0.00021653,2]
[365483840,1749700234367,-151.0,0.00021653,2]
[365483841,1749700234378,-151.0,0.00021653,2]
[365483842,1749700234387,-152.783148,0.00021653,2]
[365483843,1749700234398,-151.0,0.00021653,2]
[365483844,1749700234408,-151.0,0.00021653,2]
[365483845,1749700234418,-358.226952,0.00021653,2]
[365483846,1749700234427,-358.226952,0.00021653,2]
[365483847,1749700234437,-151.0,0.00021653,2]
[365483848,1749700234447,-206.814931,0.00021653,2]
[365483849,1749700234457,-503.83320854,0.00021718,2]
[365483850,1749700234468,-358.226952,0.00021734,2]
[365483851,1749700234477,-358.226952,0.00021734,2]
[365483852,1749700234487,-633.76866192,0.00021742,2]
[365483853,1749700234498,-160.73057,0.00021778,2]
[365483854,1749700234507,-160.73057,0.00021778,2]
[365483855,1749700234518,-204.709634,0.00021778,2]
[365483856,1749700234528,-151.0,0.00021778,2]
[365483857,1749700234538,-237.719758,0.00021778,2]
[365483858,1749700234548,-151.0,0.00021778,2]
[365483859,1749700234558,-151.0,0.00021778,2]
[365483860,1749700234569,-206.814931,0.00021778,2]
[365483861,1749700234578,-2044.05,0.00021779,2]
[365483862,1749700234588,-151.0,0.00021779,2]
[365483863,1749700234598,-151.0,0.00021779,2]
[365483864,1749700234608,-151.0,0.00021779,2]
[365483865,1749700234618,-151.0,0.00021779,2]
[365483866,1749700234628,-218.42162,0.00021779,2]
[365483867,1749700234638,-218.42162,0.00021779,2]
[365483868,1749700234648,-312.319865,0.00021779,2]
[365483869,1749700234658,-151.0,0.00021779,2]
[365483870,1749700234668,-318.605555,0.00021779,2]
[365483871,1749700234677,-318.605555,0.00021779,2]
[365483872,1749700234687,-154.706835,0.00021779,2]
[365483873,1749700234700,-407.0,0.0002179,2]
[365483874,1749700234710,-512.95990851,0.00021797,6]
[365483875,1749700234721,-460.0,0.00021835,4]
[365483876,1749700234730,-258.88849,0.00021835,2]
[365483877,1749700234741,-206.814931,0.00021835,2]
[365483878,1749700234751,-151.0,0.00021891,2]
[365483879,1749700234762,-151.0,0.00021892,2]
[365483880,1749700234771,-358.226952,0.00021892,2]
[365483881,1749700234783,-358.226952,0.00021892,2]
[365483882,1749700234793,-151.0,0.000219,2]
[365483883,1749700234802,-151.0,0.000219,2]
[365483884,1749700234812,-460.0,0.00021915,4]
[365483885,1749700234823,-460.0,0.00021915,4]
[365483886,1749700234833,-1996.56,0.00021915,4]
[365483887,1749700234842,-163.40331899,0.00021915,4]
[365483888,1749700234852,-460.0,0.00021915,4]
[365483889,1749700234861,-1159.75,0.00021915,4]
[365483890,1749700234870,-161.90114843,0.00021915,4]
[365483891,1749700234880,-460.0,0.00021916,4]
[365483892,1749700234890,-460.0,0.00021916,4]
[365483893,1749700234900,-460.0,0.00021916,4]
[365483894,1749700234909,-401.09,0.00021916,4]
[365483895,1749700234919,-206.814931,0.00021916,2]
[365483896,1749700234929,-460.0,0.00021917,4]
[365483897,1749700234938,-460.0,0.00021917,2]
[365483898,1749700234948,-160.73057,0.00021917,2]
[365483899,1749700234958,-160.73057,0.00021917,2]
[365483900,1749700234967,-460.0,0.00021917,4]
[365483901,1749700234977,-151.0,0.00021918,2]
[365483902,1749700234986,-151.0,0.00021918,2]
[365483903,1749700234996,-151.0,0.00021918,2]
[365483904,1749700235008,-151.0,0.00021918,2]
[365483905,1749700235021,-151.0,0.00021918,2]
[365483906,1749700235031,-151.0,0.00021918,2]
[365483907,1749700235041,-407.0,0.00021923,2]
[365483908,1749700235051,-151.0,0.00021926,7]
[365483909,1749700235060,-151.0,0.00021926,7]
[365483910,1749700235070,-218.42162,0.00021926,7]
[365483911,1749700235079,-218.42162,0.00021926,7]
[365483912,1749700235089,-312.319865,0.00021926,2]
[365483913,1749700235099,-151.0,0.00021926,7]
[365483914,1749700235108,-160.73057,0.00021926,7]
[365483915,1749700235119,-160.73057,0.00021926,7]
[365483916,1749700235138,-318.605555,0.00021926,7]
[365483917,1749700235151,-318.605555,0.00021926,7]
[365483918,1749700235160,-151.0,0.00021926,7]
[365483919,1749700235170,-151.0,0.00021926,7]
[365483920,1749700235180,-358.226952,0.00021926,7]
[365483921,1749700235190,-358.226952,0.00021926,7]
[365483922,1749700235199,-160.44,0.00021926,4]
[365483923,1749700235209,-590.42409999,0.00021926,4]
[365483924,1749700235219,-557.27382446,0.00021926,4]
[365483925,1749700235228,-460.0,0.00021926,4]
[365483926,1749700235238,-271.20592348,0.00021926,4]
[365483927,1749700235247,-407.0,0.00021955,2]
[365483928,1749700235256,-504.91224436,0.00021962,2]
[365483929,1749700235266,-631.68541145,0.00021962,2]
[365483930,1749700235287,-500.88597637,0.00021962,2]
[365483931,1749700235297,-512.95990851,0.00021969,6]
[365483932,1749700235306,-151.0,0.00022004,7]
[365483933,1749700235316,-151.0,0.00022004,7]
[365483934,1749700235326,-151.0,0.00022008,7]
[365483935,1749700235337,-152.918849,0.00022008,7]
[365483936,1749700235347,-407.0,0.00022014,2]
[365483937,1749700235357,-151.0,0.00022015,7]
[365483938,1749700235367,-151.0,0.00022015,7]
[365483939,1749700235376,-151.0,0.00022015,7]
[365483940,1749700235386,-151.0,0.00022015,7]
[365483941,1749700235396,-358.226952,0.00022015,7]
[365483942,1749700235406,-358.226952,0.00022015,7]
[365483943,1749700235416,-152.685599,0.00022016,7]
[365483944,1749700235425,-151.0,0.00022016,7]
[365483945,1749700235436,-151.0,0.00022016,7]
[365483946,1749700235445,-151.0,0.00022016,7]
[365483947,1749700235455,-151.0,0.00022016,7]
[365483948,1749700235465,-151.0,0.00022016,7]
[365483949,1749700235475,-151.0,0.00022016,7]
[365483950,1749700235484,-151.0,0.00022016,7]
[365483951,1749700235494,-151.0,0.00022016,7]
[365483952,1749700235504,-218.42162,0.00022016,7]
[365483953,1749700235513,-218.42162,0.00022016,7]
[365483954,1749700235523,-312.319865,0.00022016,2]
[365483955,1749700235533,-151.0,0.00022016,7]
[365483956,1749700235543,-151.0,0.00022016,7]
[365483957,1749700235554,-160.73057,0.00022016,7]
[365483958,1749700235563,-160.73057,0.00022016,7]
[365483959,1749700235573,-318.605555,0.00022016,7]
[365483960,1749700235583,-318.605555,0.00022016,7]
[365483961,1749700235592,-217.959078,0.00022016,7]
[365483962,1749700235602,-151.0,0.00022016,7]
[365483963,1749700235611,-358.226952,0.00022016,7]
[365483964,1749700235621,-358.226952,0.00022016,7]
[365483965,1749700235630,-590.7819618,0.00022027,2]
[365483966,1749700235640,-970.23987481,0.00022037,2]
[365483967,1749700235649,-407.0,0.00022083,2]
[365483968,1749700235658,-1213.78,0.000221,7]
[365483969,1749700235668,-460.0,0.00022109,4]
[365483970,1749700235677,-3323.99680966,0.00022135,2]
[365483971,1749700235687,-207.4,0.00022135,2]
[365483972,1749700235699,-407.0,0.00022137,2]
[365483973,1749700235708,-512.95990851,0.00022141,6]
[365483974,1749700235719,-15936.79822,0.00022155,2]
[365483975,1749700235728,-407.0,0.00022168,2]
[365483976,1749700235739,-16000.0,0.00022188,2]
[365483977,1749700235749,-253.31,0.00022189,4]
[365483978,1749700235759,-177.44,0.00022189,4]
[365483979,1749700235770,-1996.56,0.00022189,4]
[365483980,1749700235781,-431.66,0.00022189,4]
[365483981,1749700235790,-1159.75,0.00022189,4]
[365483982,1749700235800,-460.0,0.0002219,4]
[365483983,1749700235810,-460.0,0.0002219,4]
[365483984,1749700235820,-460.0,0.0002219,4]
[365483985,1749700235829,-595.64430943,0.0002219,2]
[365483986,1749700235840,-293.982904,0.00022191,7]
[365483987,1749700235850,-151.0,0.00022191,7]
[365483988,1749700235860,-151.0,0.00022191,7]
[365483989,1749700235870,-151.0,0.00022191,7]
[365483990,1749700235880,-460.0,0.00022191,4]
[365483991,1749700235890,-460.0,0.00022191,2]
[365483992,1749700235900,-160.73057,0.00022191,7]
[365483993,1749700235911,-160.73057,0.00022191,7]
[365483994,1749700235921,-460.0,0.00022191,4]
[365483995,1749700235931,-151.0,0.00022191,7]
[365483996,1749700235941,-151.0,0.000222,7]
[365483997,1749700235950,-358.226952,0.000222,7]
[365483998,1749700235960,-358.226952,0.000222,7]
[365483999,1749700235971,-460.0,0.000222,4]
[365484000,1749700235981,-225.75298494,0.000222,69]
[365484001,1749700235991,-151.0,0.0002221,7]
[365484002,1749700236001,-151.0,0.0002221,7]
[365484003,1749700236010,-218.42162,0.0002221,7]
[365484004,1749700236019,-218.42162,0.0002221,7]
[365484005,1749700236030,-312.319865,0.0002221,2]
[365484006,1749700236039,-160.73057,0.0002221,7]
[365484007,1749700236049,-160.73057,0.0002221,7]
[365484008,1749700236059,-318.605555,0.0002221,7]
[365484009,1749700236068,-318.605555,0.0002221,7]
[365484010,1749700236078,-151.0,0.0002221,7]
[365484011,1749700236087,-963.0,0.00022231,2]
[365484012,1749700236097,-2160.0,0.00022231,2]
[365484013,1749700236107,-653.0,0.00022231,2]
[365484014,1749700236116,-405.0,0.00022231,2]
[365484015,1749700236127,-407.0,0.00022237,2]
[365484016,1749700236248,-587.0,0.0002226,2]
[365484017,1749700236259,-151.0,0.00022282,7]
[365484018,1749700236269,-151.0,0.00022282,7]
[365484019,1749700236279,-512.95990851,0.00022314,7]
[365484020,1749700236290,-407.0,0.00022334,2]
[365484021,1749700236300,-407.0,0.00022345,2]
[365484022,1749700236310,-460.0,0.00022383,4]
[365484023,1749700236319,-970.23987477,0.00022415,2]
[365484024,1749700236329,-407.0,0.00022425,2]
[365484025,1749700236339,-189.0,0.00022428,2]
[365484026,1749700236348,-151.0,0.00022439,7]
[365484027,1749700236358,-151.0,0.00022439,7]
[365484028,1749700236368,-151.0,0.00022439,7]
[365484029,1749700236378,-200.0,0.00022439,7]
[365484030,1749700236388,-202.64250692,0.00022439,7]
[365484031,1749700236399,-358.226952,0.00022439,7]
[365484032,1749700236410,-358.226952,0.00022439,7]
[365484033,1749700236420,-1996.56,0.00022463,4]
[365484034,1749700236430,-1159.75,0.00022463,4]
[365484035,1749700236440,-460.0,0.00022464,4]
[365484036,1749700236450,-460.0,0.00022464,4]
[365484037,1749700236459,-460.0,0.00022464,4]
[365484038,1749700236471,-151.0,0.00022465,7]
[365484039,1749700236481,-151.0,0.00022465,7]
[365484040,1749700236491,-151.0,0.00022465,7]
[365484041,1749700236501,-151.0,0.00022465,7]
[365484042,1749700236510,-218.42162,0.00022465,7]
[365484043,1749700236520,-218.42162,0.00022465,7]
[365484044,1749700236530,-312.319865,0.00022465,2]
[365484045,1749700236540,-497.33734489,0.00022465,4]
[365484046,1749700236549,-151.0,0.00022465,7]
[365484047,1749700236559,-460.0,0.00022465,2]
[365484048,1749700236570,-160.73057,0.00022465,7]
[365484049,1749700236580,-160.73057,0.00022465,7]
[365484050,1749700236591,-583.34706688,0.00022465,4]
[365484051,1749700236601,-318.605555,0.00022465,7]
[365484052,1749700236611,-318.605555,0.00022465,7]
[365484053,1749700236621,-151.0,0.00022465,7]
[365484054,1749700236630,-407.0,0.00022471,2]